{"text_format":"3","workbook":"xlsx","n_sheets":6,"sheets":["Начало","Панель мониторинга","Доходы и расходы","Бюджетный отчет","Списки данных","Сводная таблица категорий"],"not_rendered":{"charts":3,"defined_names":23,"pivot_tables":2},"read":"whole","date_system":"1900"}

{"sheet":"Начало","index":0,"n_rows":8,"n_cols":2,"rows_kept":8}
[null,"О шаблоне"]
[null,"Используйте этот шаблон, чтобы создать домашний бюджет на две недели."]
[null,"Лист \"Панель мониторинга\" содержит диаграммы для ежемесячных и годовых итогов, а также таблицу доходов и расходов за две недели."]
[null,"Введите категории на листе \"Списки данных\" и значения на листе \"Доходы и расходы\"."]
[null,"Обновите сводную таблицу на листе \"Отчет о бюджете\"."]
[null,"Примечание."]
[null,"В столбце A на всех листах содержатся дополнительные инструкции. Этот текст намеренно скрыт. Чтобы удалить этот текст, выделите столбец A и нажмите клавишу DELETE. "]
[null,"Чтобы получить дополнительные сведения о таблице, нажмите клавиши SHIFT+F10, выберите пункт \"Таблица\", а затем — \"Замещающий текст\". В случае сводных таблиц нажмите клавиши SHIFT+F10 в таблице, выберите \"Параметры сводной таблицы\", а затем откройте вкладку \"Замещающий текст\"."]

{"sheet":"Панель мониторинга","index":1,"n_rows":12,"n_cols":15,"rows_kept":12,"merged":[[0,1,0,13],[1,2,1,7]]}
["Создайте панель мониторинга для ежемесячных и годовых итогов, а также доходов и расходов за две недели на этом листе. В ячейках этого столбца представлены полезные инструкции по использованию этого листа. Название книги находится в ячейке справа, а название листа — в ячейке O1.","Домашний бюджет на две недели",{"$nulls":12},"ПАНЕЛЬ МОНИТОРИНГА"]
["Выберите ползунок в ячейке C2, чтобы изменить месяц в ячейке справа, а чтобы изменить год в ячейке I2, выберите ползунок в ячейке J2.",{"$f":"CHOOSE(НомерМесяца,\"ЯНВАРЬ\",\"ФЕВРАЛЬ\",\"МАРТ\",\"АПРЕЛЬ\",\"МАЙ\",\"ИЮНЬ\",\"ИЮЛЬ\",\"АВГУСТ\",\"СЕНТЯБРЬ\",\"ОКТЯБРЬ\",\"НОЯБРЬ\",\"ДЕКАБРЬ\")","v":"ДЕКАБРЬ"},12,{"$nulls":5},2022]
["Подпись \"Итоги месяца\" находится в ячейке справа, а метка \"Годовые итоги\" в ячейке I3.","ИТОГИ ЗА МЕСЯЦ",{"$nulls":6},"ИТОГИ ЗА ГОД"]
["Линейчатая диаграмма, сравнивающая итоговые суммы ежемесячных доходов и расходов, находится в ячейке C4, а линейчатая диаграмма, сравнивающая итоговые суммы годовых доходов и расходов, находится в ячейке J4. В ячейке A8 представлены дальнейшие инструкции.","ДОХОДЫ",null,{"$f":"МесячныеРасходыИтоги","v":{"v":0,"d":"0 ₽"}},{"$nulls":4},"ДОХОДЫ",null,null,{"$f":"ГодовыеРасходыИтоги","v":{"v":10742,"d":"10,742 ₽"}}]
[null,"РАСХОДЫ",null,{"$f":"МесячныйДоходИтоги","v":{"v":0,"d":"0 ₽"}},{"$nulls":4},"РАСХОДЫ",null,null,{"$f":"ГодовойДоходИтоги","v":{"v":13200,"d":"13,200 ₽"}}]
[]
[]
["Таблица панели мониторинга, начинающаяся с ячейки справа, обновляется автоматически.","Категория","ЯНВАРЬ","ФЕВРАЛЬ","МАРТ","АПРЕЛЬ","МАЙ","ИЮНЬ","ИЮЛЬ","АВГУСТ","СЕНТЯБРЬ","ОКТЯБРЬ","НОЯБРЬ","ДЕКАБРЬ","Спарклайн"]
[null,"Доход 1–15",{"$f":"SUMIFS(Доходы[СУММА],Доходы[ДАТА],\"<=\"&ДатаСередина,Доходы[ДАТА],\">=\"&ДатаНачало)","v":{"v":0,"d":"0.00 ₽"}},{"$f":"SUMIFS(Доходы[СУММА],Доходы[ДАТА],\"<=\"&ДатаСередина,Доходы[ДАТА],\">=\"&ДатаНачало)","v":{"v":0,"d":"0.00 ₽"}},{"$f":"SUMIFS(Доходы[СУММА],Доходы[ДАТА],\"<=\"&ДатаСередина,Доходы[ДАТА],\">=\"&ДатаНачало)","v":{"v":1300,"d":"1,300.00 ₽"}},{"$f":"SUMIFS(Доходы[СУММА],Доходы[ДАТА],\"<=\"&ДатаСередина,Доходы[ДАТА],\">=\"&ДатаНачало)","v":{"v":2600,"d":"2,600.00 ₽"}},{"$f":"SUMIFS(Доходы[СУММА],Доходы[ДАТА],\"<=\"&ДатаСередина,Доходы[ДАТА],\">=\"&ДатаНачало)","v":{"v":2600,"d":"2,600.00 ₽"}},{"$f":"SUMIFS(Доходы[СУММА],Доходы[ДАТА],\"<=\"&ДатаСередина,Доходы[ДАТА],\">=\"&ДатаНачало)","v":{"v":0,"d":"0.00 ₽"}},{"$f":"SUMIFS(Доходы[СУММА],Доходы[ДАТА],\"<=\"&ДатаСередина,Доходы[ДАТА],\">=\"&ДатаНачало)","v":{"v":0,"d":"0.00 ₽"}},{"$f":"SUMIFS(Доходы[СУММА],Доходы[ДАТА],\"<=\"&ДатаСередина,Доходы[ДАТА],\">=\"&ДатаНачало)","v":{"v":0,"d":"0.00 ₽"}},{"$f":"SUMIFS(Доходы[СУММА],Доходы[ДАТА],\"<=\"&ДатаСередина,Доходы[ДАТА],\">=\"&ДатаНачало)","v":{"v":0,"d":"0.00 ₽"}},{"$f":"SUMIFS(Доходы[СУММА],Доходы[ДАТА],\"<=\"&ДатаСередина,Доходы[ДАТА],\">=\"&ДатаНачало)","v":{"v":0,"d":"0.00 ₽"}},{"$f":"SUMIFS(Доходы[СУММА],Доходы[ДАТА],\"<=\"&ДатаСередина,Доходы[ДАТА],\">=\"&ДатаНачало)","v":{"v":0,"d":"0.00 ₽"}},{"$f":"SUMIFS(Доходы[СУММА],Доходы[ДАТА],\"<=\"&ДатаСередина,Доходы[ДАТА],\">=\"&ДатаНачало)","v":{"v":0,"d":"0.00 ₽"}}]
[null,"Доход 16–Конец месяца",{"$f":"SUMIFS(Доходы[СУММА],Доходы[ДАТА],\"<=\"&ДатаКонец,Доходы[ДАТА],\">=\"&ДатаСередина+1)","v":{"v":0,"d":"0.00 ₽"}},{"$f":"SUMIFS(Доходы[СУММА],Доходы[ДАТА],\"<=\"&ДатаКонец,Доходы[ДАТА],\">=\"&ДатаСередина+1)","v":{"v":0,"d":"0.00 ₽"}},{"$f":"SUMIFS(Доходы[СУММА],Доходы[ДАТА],\"<=\"&ДатаКонец,Доходы[ДАТА],\">=\"&ДатаСередина+1)","v":{"v":3100,"d":"3,100.00 ₽"}},{"$f":"SUMIFS(Доходы[СУММА],Доходы[ДАТА],\"<=\"&ДатаКонец,Доходы[ДАТА],\">=\"&ДатаСередина+1)","v":{"v":3100,"d":"3,100.00 ₽"}},{"$f":"SUMIFS(Доходы[СУММА],Доходы[ДАТА],\"<=\"&ДатаКонец,Доходы[ДАТА],\">=\"&ДатаСередина+1)","v":{"v":500,"d":"500.00 ₽"}},{"$f":"SUMIFS(Доходы[СУММА],Доходы[ДАТА],\"<=\"&ДатаКонец,Доходы[ДАТА],\">=\"&ДатаСередина+1)","v":{"v":0,"d":"0.00 ₽"}},{"$f":"SUMIFS(Доходы[СУММА],Доходы[ДАТА],\"<=\"&ДатаКонец,Доходы[ДАТА],\">=\"&ДатаСередина+1)","v":{"v":0,"d":"0.00 ₽"}},{"$f":"SUMIFS(Доходы[СУММА],Доходы[ДАТА],\"<=\"&ДатаКонец,Доходы[ДАТА],\">=\"&ДатаСередина+1)","v":{"v":0,"d":"0.00 ₽"}},{"$f":"SUMIFS(Доходы[СУММА],Доходы[ДАТА],\"<=\"&ДатаКонец,Доходы[ДАТА],\">=\"&ДатаСередина+1)","v":{"v":0,"d":"0.00 ₽"}},{"$f":"SUMIFS(Доходы[СУММА],Доходы[ДАТА],\"<=\"&ДатаКонец,Доходы[ДАТА],\">=\"&ДатаСередина+1)","v":{"v":0,"d":"0.00 ₽"}},{"$f":"SUMIFS(Доходы[СУММА],Доходы[ДАТА],\"<=\"&ДатаКонец,Доходы[ДАТА],\">=\"&ДатаСередина+1)","v":{"v":0,"d":"0.00 ₽"}},{"$f":"SUMIFS(Доходы[СУММА],Доходы[ДАТА],\"<=\"&ДатаКонец,Доходы[ДАТА],\">=\"&ДатаСередина+1)","v":{"v":0,"d":"0.00 ₽"}}]
[null,"Расходы 1–15",{"$f":"SUMIFS(Расходы[СУММА],Расходы[ДАТА],\"<=\"&ДатаСередина+1,Расходы[ДАТА],\">=\"&ДатаНачало)","v":{"v":0,"d":"0.00 ₽"}},{"$f":"SUMIFS(Расходы[СУММА],Расходы[ДАТА],\"<=\"&ДатаСередина+1,Расходы[ДАТА],\">=\"&ДатаНачало)","v":{"v":0,"d":"0.00 ₽"}},{"$f":"SUMIFS(Расходы[СУММА],Расходы[ДАТА],\"<=\"&ДатаСередина+1,Расходы[ДАТА],\">=\"&ДатаНачало)","v":{"v":1150,"d":"1,150.00 ₽"}},{"$f":"SUMIFS(Расходы[СУММА],Расходы[ДАТА],\"<=\"&ДатаСередина+1,Расходы[ДАТА],\">=\"&ДатаНачало)","v":{"v":5175,"d":"5,175.00 ₽"}},{"$f":"SUMIFS(Расходы[СУММА],Расходы[ДАТА],\"<=\"&ДатаСередина+1,Расходы[ДАТА],\">=\"&ДатаНачало)","v":{"v":2792,"d":"2,792.00 ₽"}},{"$f":"SUMIFS(Расходы[СУММА],Расходы[ДАТА],\"<=\"&ДатаСередина+1,Расходы[ДАТА],\">=\"&ДатаНачало)","v":{"v":0,"d":"0.00 ₽"}},{"$f":"SUMIFS(Расходы[СУММА],Расходы[ДАТА],\"<=\"&ДатаСередина+1,Расходы[ДАТА],\">=\"&ДатаНачало)","v":{"v":0,"d":"0.00 ₽"}},{"$f":"SUMIFS(Расходы[СУММА],Расходы[ДАТА],\"<=\"&ДатаСередина+1,Расходы[ДАТА],\">=\"&ДатаНачало)","v":{"v":0,"d":"0.00 ₽"}},{"$f":"SUMIFS(Расходы[СУММА],Расходы[ДАТА],\"<=\"&ДатаСередина+1,Расходы[ДАТА],\">=\"&ДатаНачало)","v":{"v":0,"d":"0.00 ₽"}},{"$f":"SUMIFS(Расходы[СУММА],Расходы[ДАТА],\"<=\"&ДатаСередина+1,Расходы[ДАТА],\">=\"&ДатаНачало)","v":{"v":0,"d":"0.00 ₽"}},{"$f":"SUMIFS(Расходы[СУММА],Расходы[ДАТА],\"<=\"&ДатаСередина+1,Расходы[ДАТА],\">=\"&ДатаНачало)","v":{"v":0,"d":"0.00 ₽"}},{"$f":"SUMIFS(Расходы[СУММА],Расходы[ДАТА],\"<=\"&ДатаСередина+1,Расходы[ДАТА],\">=\"&ДатаНачало)","v":{"v":0,"d":"0.00 ₽"}}]
[null,"Расходы 16–Конец месяца",{"$f":"SUMIFS(Расходы[СУММА],Расходы[ДАТА],\"<=\"&ДатаКонец,Расходы[ДАТА],\">=\"&ДатаСередина+1)","v":{"v":0,"d":"0.00 ₽"}},{"$f":"SUMIFS(Расходы[СУММА],Расходы[ДАТА],\"<=\"&ДатаКонец,Расходы[ДАТА],\">=\"&ДатаСередина+1)","v":{"v":75,"d":"75.00 ₽"}},{"$f":"SUMIFS(Расходы[СУММА],Расходы[ДАТА],\"<=\"&ДатаКонец,Расходы[ДАТА],\">=\"&ДатаСередина+1)","v":{"v":200,"d":"200.00 ₽"}},{"$f":"SUMIFS(Расходы[СУММА],Расходы[ДАТА],\"<=\"&ДатаКонец,Расходы[ДАТА],\">=\"&ДатаСередина+1)","v":{"v":875,"d":"875.00 ₽"}},{"$f":"SUMIFS(Расходы[СУММА],Расходы[ДАТА],\"<=\"&ДатаКонец,Расходы[ДАТА],\">=\"&ДатаСередина+1)","v":{"v":500,"d":"500.00 ₽"}},{"$f":"SUMIFS(Расходы[СУММА],Расходы[ДАТА],\"<=\"&ДатаКонец,Расходы[ДАТА],\">=\"&ДатаСередина+1)","v":{"v":0,"d":"0.00 ₽"}},{"$f":"SUMIFS(Расходы[СУММА],Расходы[ДАТА],\"<=\"&ДатаКонец,Расходы[ДАТА],\">=\"&ДатаСередина+1)","v":{"v":0,"d":"0.00 ₽"}},{"$f":"SUMIFS(Расходы[СУММА],Расходы[ДАТА],\"<=\"&ДатаКонец,Расходы[ДАТА],\">=\"&ДатаСередина+1)","v":{"v":0,"d":"0.00 ₽"}},{"$f":"SUMIFS(Расходы[СУММА],Расходы[ДАТА],\"<=\"&ДатаКонец,Расходы[ДАТА],\">=\"&ДатаСередина+1)","v":{"v":0,"d":"0.00 ₽"}},{"$f":"SUMIFS(Расходы[СУММА],Расходы[ДАТА],\"<=\"&ДатаКонец,Расходы[ДАТА],\">=\"&ДатаСередина+1)","v":{"v":0,"d":"0.00 ₽"}},{"$f":"SUMIFS(Расходы[СУММА],Расходы[ДАТА],\"<=\"&ДатаКонец,Расходы[ДАТА],\">=\"&ДатаСередина+1)","v":{"v":0,"d":"0.00 ₽"}},{"$f":"SUMIFS(Расходы[СУММА],Расходы[ДАТА],\"<=\"&ДатаКонец,Расходы[ДАТА],\">=\"&ДатаСередина+1)","v":{"v":0,"d":"0.00 ₽"}}]

{"sheet":"Доходы и расходы","index":2,"n_rows":36,"n_cols":9,"rows_kept":36,"merged":[[0,1,0,6],[0,7,0,8]]}
["Создайте список доходов и расходов на этом листе. В ячейках этого столбца представлены полезные инструкции по использованию этого листа. Название книги находится в ячейке справа, а название листа — в ячейке H1.",{"$f":"Домашний_бюджет_на_две_недели_заголовок","v":"Домашний бюджет на две недели"},{"$nulls":5},"ДОХОДЫ И РАСХОДЫ"]
["Подпись \"Доходы\" находится в ячейке справа, а метка \"Расходы\" в ячейке F2.","ДОХОДЫ",{"$nulls":3},"РАСХОДЫ"]
["Введите сведения в таблице \"Доходы\", начиная с ячейки справа, а в таблице \"Расходы\", начиная с ячейки F3.","ДАТА","ОПИСАНИЕ","СУММА",null,"ДАТА","КАТЕГОРИЯ","ОПИСАНИЕ","СУММА"]
[null,{"$f":"TODAY()","v":"2022-05-17"},"Бонус",{"v":500,"d":"500.00 ₽"},null,{"$f":"TODAY()","v":"2022-05-17"},"Медицина","Страхование",{"v":500,"d":"500.00 ₽"}]
[null,{"$f":"TODAY()-14","v":"2022-05-03"},"Зарплата Дениса",{"v":1300,"d":"1,300.00 ₽"},null,{"$f":"TODAY()-7","v":"2022-05-10"},"Дом","Ипотека",{"v":1000,"d":"1,000.00 ₽"}]
[null,{"$f":"TODAY()-14","v":"2022-05-03"},"Зарплата Петра",{"v":1300,"d":"1,300.00 ₽"},null,"2022-05-10","Дом","Электричество",{"v":100,"d":"100.00 ₽"}]
[null,{"$f":"TODAY()-28","v":"2022-04-19"},"Зарплата Дениса",{"v":1500,"d":"1,500.00 ₽"},null,"2022-05-10","Дом","Водоснабжение, водоотведение",{"v":50,"d":"50.00 ₽"}]
[null,{"$f":"TODAY()-28","v":"2022-04-19"},"Зарплата Петра",{"v":1600,"d":"1,600.00 ₽"},null,"2022-05-10","Дом","Вывоз мусора",{"v":25,"d":"25.00 ₽"}]
[null,{"$f":"TODAY()-42","v":"2022-04-05"},"Зарплата Дениса",{"v":1300,"d":"1,300.00 ₽"},null,"2022-05-10","Дом","Мобильный телефон",{"v":100,"d":"100.00 ₽"}]
[null,{"$f":"TODAY()-42","v":"2022-04-05"},"Зарплата Петра",{"v":1300,"d":"1,300.00 ₽"},null,"2022-05-10","Дом","Мобильный телефон",{"v":30,"d":"30.00 ₽"}]
[null,{"$f":"TODAY()-56","v":"2022-03-22"},"Зарплата Дениса",{"v":1500,"d":"1,500.00 ₽"},null,"2022-05-10","Дом","Ипотека",{"v":50,"d":"50.00 ₽"}]
[null,{"$f":"TODAY()-56","v":"2022-03-22"},"Зарплата Петра",{"v":1600,"d":"1,600.00 ₽"},null,"2022-05-10","Дом","Мобильный телефон",{"v":50,"d":"50.00 ₽"}]
[null,{"$f":"TODAY()-70","v":"2022-03-08"},"Зарплата Дениса",{"v":1300,"d":"1,300.00 ₽"},null,{"$f":"TODAY()-7","v":"2022-05-10"},"Дом","Мобильный телефон",{"v":25,"d":"25.00 ₽"}]
[{"$nulls":5},{"$f":"TODAY()-8","v":"2022-05-09"},"Дом","Электричество",{"v":100,"d":"100.00 ₽"}]
[{"$nulls":5},{"$f":"TODAY()-9","v":"2022-05-08"},"Развлечения","Кино",{"v":37,"d":"37.00 ₽"}]
[{"$nulls":5},{"$f":"TODAY()-10","v":"2022-05-07"},"Еда","Продовольственные товары",{"v":350,"d":"350.00 ₽"}]
[{"$nulls":5},{"$f":"TODAY()-11","v":"2022-05-06"},"Еда","Рестораны",{"v":75,"d":"75.00 ₽"}]
[{"$nulls":5},{"$f":"TODAY()-12","v":"2022-05-05"},"Дети","Деньги на обед",{"v":150,"d":"150.00 ₽"}]
[{"$nulls":5},{"$f":"TODAY()-13","v":"2022-05-04"},"Инвестиционные счета","Сбережения",{"v":250,"d":"250.00 ₽"}]
[{"$nulls":5},{"$f":"TODAY()-14","v":"2022-05-03"},"Инвестиционные счета","Инвестиционный счет",{"v":250,"d":"250.00 ₽"}]
[{"$nulls":5},{"$f":"TODAY()-15","v":"2022-05-02"},"Личное","Фитнес клуб",{"v":100,"d":"100.00 ₽"}]
[{"$nulls":5},{"$f":"TODAY()-16","v":"2022-05-01"},"Домашние животные","Еда",{"v":50,"d":"50.00 ₽"}]
[{"$nulls":5},{"$f":"TODAY()-20","v":"2022-04-27"},"Домашние животные","Парикмахерская",{"v":50,"d":"50.00 ₽"}]
[{"$nulls":5},{"$f":"TODAY()-20","v":"2022-04-27"},"Домашние животные","Другое",{"v":50,"d":"50.00 ₽"}]
[{"$nulls":5},{"$f":"TODAY()-25","v":"2022-04-22"},"Транспорт","Оплата автомобиля 1 ",{"v":300,"d":"300.00 ₽"}]
[{"$nulls":5},{"$f":"TODAY()-25","v":"2022-04-22"},"Транспорт","Оплата автомобиля 2 ",{"v":350,"d":"350.00 ₽"}]
[{"$nulls":5},{"$f":"TODAY()-25","v":"2022-04-22"},"Транспорт","Автомобильная страховка",{"v":50,"d":"50.00 ₽"}]
[{"$nulls":5},{"$f":"TODAY()-30","v":"2022-04-17"},"Транспорт","Топливо",{"v":50,"d":"50.00 ₽"}]
[{"$nulls":5},{"$f":"TODAY()-31","v":"2022-04-16"},"Транспорт","Топливо",{"v":25,"d":"25.00 ₽"}]
[{"$nulls":5},{"$f":"TODAY()-42","v":"2022-04-05"},"Транспорт","Оплата автомобиля 2 ",{"v":150,"d":"150.00 ₽"}]
[{"$nulls":5},{"$f":"TODAY()-45","v":"2022-04-02"},"Дом","Ипотека",{"v":5000,"d":"5,000.00 ₽"}]
[{"$nulls":5},{"$f":"TODAY()-50","v":"2022-03-28"},"Дом","Электричество",{"v":200,"d":"200.00 ₽"}]
[{"$nulls":5},{"$f":"TODAY()-65","v":"2022-03-13"},"Дом","Мобильный телефон",{"v":100,"d":"100.00 ₽"}]
[{"$nulls":5},{"$f":"TODAY()-70","v":"2022-03-08"},"Дом","Вывоз мусора",{"v":50,"d":"50.00 ₽"}]
[{"$nulls":5},{"$f":"TODAY()-75","v":"2022-03-03"},"Дом","Ипотека",{"v":1000,"d":"1,000.00 ₽"}]
[{"$nulls":5},{"$f":"TODAY()-78","v":"2022-02-28"},"Развлечения","Кино",{"v":75,"d":"75.00 ₽"}]

{"sheet":"Бюджетный отчет","index":3,"n_rows":26,"n_cols":6,"rows_kept":26,"merged":[[0,1,0,4],[1,1,1,3],[4,3,4,5]]}
["Создайте на этом листе отчет о бюджете. В ячейках этого столбца представлены полезные инструкции по использованию этого листа. Название книги находится в ячейке справа, а название листа — в ячейке F1.",{"$f":"Домашний_бюджет_на_две_недели_заголовок","v":"Домашний бюджет на две недели"},{"$nulls":3},"ОТЧЕТ О БЮДЖЕТЕ"]
["Выберите \"Годы\", \"Кварталы\", \"Месяцы\" или \"Дни\" и используйте ползунок в ячейке справа, чтобы увидеть сводную таблицу расходов за выбранный период. Срез \"Категория\" для фильтрации данных сводной таблицы находится в ячейках E2, а срез \"Описание\" в ячейке F2.","Временная шкала для фильтрации находится в этой ячейке.",null,null,"В этой ячейке находится срез для фильтрации данных сводной таблицы на основе категории.","В этой ячейке находится срез для фильтрации данных сводной таблицы на основе описания."]
["В ячейке справа представлен совет.","Нажмите SHIFT+F10 в сводной таблице \"Расходы\", а затем выберите \"Обновить\", чтобы обновить данные на этом листе, или выберите \"Обновить\" на вкладке \"Анализ\"."]
["Подпись \"Расходы\" находится в ячейке справа.","РАСХОДЫ"]
["Сводная таблица расходов, начинается в ячейке справа. Подпись \"Итоги по категориям\" находится в ячейке D4.","Названия строк","Сумма по полю СУММА","ИТОГИ ПО КАТЕГОРИЯМ"]
["Круговая диаграмма, сравнивающая все категории, находится в ячейке D6.","Оплата автомобиля 1 ",{"v":300,"d":"300.00 ₽"},"Круговая диаграмма, сравнивающая все категории, находится в этой ячейке."]
[null,"Оплата автомобиля 2 ",{"v":500,"d":"500.00 ₽"}]
[null,"Автомобильная страховка",{"v":50,"d":"50.00 ₽"}]
[null,"Вывоз мусора",{"v":75,"d":"75.00 ₽"}]
[null,"Деньги на обед",{"v":150,"d":"150.00 ₽"}]
[null,"Другое",{"v":50,"d":"50.00 ₽"}]
[null,"Еда",{"v":50,"d":"50.00 ₽"}]
[null,"Инвестиционный счет",{"v":250,"d":"250.00 ₽"}]
[null,"Ипотека",{"v":7050,"d":"7,050.00 ₽"}]
[null,"Кино",{"v":112,"d":"112.00 ₽"}]
[null,"Мобильный телефон",{"v":305,"d":"305.00 ₽"}]
[null,"Парикмахерская",{"v":50,"d":"50.00 ₽"}]
[null,"Продовольственные товары",{"v":350,"d":"350.00 ₽"}]
[null,"Рестораны",{"v":75,"d":"75.00 ₽"}]
[null,"Сбережения",{"v":250,"d":"250.00 ₽"}]
[null,"Страхование",{"v":500,"d":"500.00 ₽"}]
[null,"Топливо",{"v":75,"d":"75.00 ₽"}]
[null,"Фитнес клуб",{"v":100,"d":"100.00 ₽"}]
[null,"Электричество",{"v":400,"d":"400.00 ₽"}]
[null,"Водоснабжение, водоотведение",{"v":50,"d":"50.00 ₽"}]
[null,"Общий итог",{"v":10742,"d":"10,742.00 ₽"}]

{"sheet":"Списки данных","index":4,"n_rows":8,"n_cols":13,"rows_kept":8,"merged":[[0,1,0,11]]}
["Введите данные категорий на этом листе, чтобы заполнить раскрывающиеся списки в таблице \"Расходы\" на листе \"Расходы и доходы\". Измените имена или описания категорий под каждой из них, чтобы обновить списки. В ячейках этого столбца представлены полезные инструкции по использованию этого листа. Название книги находится в ячейке справа, а название листа — в ячейке M1.",{"$f":"Домашний_бюджет_на_две_недели_заголовок","v":"Домашний бюджет на две недели"},{"$nulls":10},"СПИСКИ ДАННЫХ"]
["В ячейке справа представлен совет.","НАСТРОЙКА         Данные категории ниже заполняют раскрывающиеся списки в таблице \"Расходы\" на листе \"Расходы и доходы\". Измените имена или описания категорий под каждой из них, чтобы обновить списки."]
["Введите или измените имена или описания категорий под каждой из них в таблице, начиная с ячейки справа.","Дом","Развлечения","Еда","Подарки и пожертвования","Дети","Инвестиционные счета","Медицина","Другое","Личное","Домашние животные","Налоги и юридические расходы","Транспорт"]
[null,"Ипотека","Кино","Продовольственные товары","Благотворительный взнос 1","Одежда","Пенсионный фонд","Врачи и больницы","Другое","Одежда","Еда","Федеральные","Оплата автомобиля 1 "]
[null,"Электричество","Видео и фильмы","Рестораны","Благотворительный взнос 2","Игрушки и игры","Сбережения","Страхование","Сборы организации","Уход за волосами и ногтями","Расходные материалы","Уровня штата","Оплата автомобиля 2 "]
[null,"Водоснабжение, водоотведение","Музыка",null,"Благотворительный взнос 3","Деньги на обед","Расчетный счет",null,null,"Химчистка","Медицина","Местные","Автомобильная страховка"]
[null,"Вывоз мусора","Концерты и театры",null,"Подарок","Сборы и штрафы","Пенсионный счет",null,null,"Фитнес клуб","Парикмахерская","Другое","Лицензирование и регистрация"]
[null,"Мобильный телефон","Спортивные мероприятия",null,null,"Школьные принадлежности","Инвестиционный счет",null,null,"Покупки","Другое","Адвокат","Топливо"]

{"sheet":"Сводная таблица категорий","index":5,"n_rows":13,"n_cols":13,"rows_kept":13,"hidden":true}
[null,"Домашний бюджет на две недели",{"$nulls":10},"СВОДНЫЕ КАТЕГОРИИ"]
[null,"Эта сводная таблица — источник данных для сводной диаграммы итоговой суммы по категориям в отчете о бюджете. "]
[null,"Названия строк","Сумма по полю СУММА"]
[null,"Дети",{"v":150,"d":"150 ₽"}]
[null,"Развлечения",{"v":112,"d":"112 ₽"}]
[null,"Домашние животные",{"v":150,"d":"150 ₽"}]
[null,"Дом",{"v":7880,"d":"7,880 ₽"}]
[null,"Еда",{"v":425,"d":"425 ₽"}]
[null,"Инвестиционные счета",{"v":500,"d":"500 ₽"}]
[null,"Личное",{"v":100,"d":"100 ₽"}]
[null,"Медицина",{"v":500,"d":"500 ₽"}]
[null,"Транспорт",{"v":925,"d":"925 ₽"}]
[null,"Общий итог",{"v":10742,"d":"10,742 ₽"}]